bitfinex/quotes_SOLUSD_20260120
["timestamp","ask_amount","ask_price","bid_price","bid_amount"]
[1768935409521,5.67689912,127.13,127.09,5.66550609]
[1768935412527,3.00385981,127.13,127.1,2.99246678]
[1768935412741,5.67689912,127.14,127.1,5.66550609]
[1768935412920,3.00385981,127.15,127.12,5.66550609]
[1768935414146,3.00385981,127.15,127.12,2.67303931]
[1768935414308,10.86872768,127.15,127.11,5.66550609]
[1768935414512,3.00385981,127.15,127.12,5.66550609]
[1768935415436,3.00385981,127.15,127.12,2.99246678]
[1768935416842,5.67689912,127.15,127.11,2.99246678]
[1768935417037,5.67689912,127.15,127.11,5.66550609]
[1768935417241,2.67303931,127.17,127.13,2.67303931]
[1768935417425,3.00385981,127.17,127.14,5.66550609]
[1768935418320,3.00385981,127.17,127.13,5.66550609]
[1768935420122,3.00385981,127.17,127.14,2.67303931]
[1768935420442,3.00385981,127.18,127.15,2.67303931]
[1768935420740,8.34794837,127.19,127.16,2.67303931]
[1768935420943,3.00385981,127.17,127.13,2.99246678]
[1768935421128,5.67689912,127.18,127.14,5.66550609]
[1768935421439,3.00385981,127.18,127.14,5.66550609]
[1768935421642,3.00385981,127.18,127.15,5.66550609]
[1768935421844,10.67715173,127.2,127.15,5.66550609]
[1768935422024,5.67689912,127.2,127.16,5.66550609]
[1768935422428,13.53860834,127.2,127.16,5.66550609]
[1768935422828,13.53860834,127.2,127.16,2.99246678]
[1768935423040,10.53474853,127.2,127.16,2.99246678]
[1768935423341,5.67689912,127.19,127.15,2.99246678]
[1768935423525,7.86170922,127.2,127.12,2.99246678]
[1768935423526,3.00385981,127.16,127.12,2.99246678]
[1768935423725,3.00385981,127.16,127.13,2.99246678]
[1768935423936,5.67689912,127.18,127.14,2.99246678]
[1768935424138,5.67689912,127.18,127.15,2.99246678]
[1768935424445,3.00385981,127.19,127.15,5.66550609]
[1768935425225,10.86613472,127.19,127.15,5.66550609]
[1768935425766,3.00385981,127.18,127.15,5.66550609]
[1768935426361,13.53917403,127.19,127.15,5.66550609]
[1768935426646,3.00385981,127.18,127.15,5.66550609]
[1768935427152,3.00385981,127.18,127.15,2.99246678]
[1768935427341,3.00385981,127.18,127.15,5.66550609]
[1768935427725,3.00385981,127.18,127.15,2.99246678]
[1768935427930,3.00385981,127.18,127.12,7.86629634]
[1768935427931,3.00385981,127.16,127.12,5.66550609]
[1768935428451,5.67689912,127.15,127.11,2.99246678]
[1768935428946,5.67689912,127.15,127.12,2.99246678]
[1768935429252,3.00385981,127.15,127.12,5.66550609]
[1768935429433,5.67689912,127.17,127.14,2.99246678]
[1768935431346,3.00385981,127.15,127.11,2.99246678]
[1768935431522,5.67689912,127.15,127.12,2.99246678]
[1768935432239,2.67303931,127.16,127.12,2.99246678]
[1768935432437,5.67689912,127.17,127.13,5.66550609]
[1768935432639,3.00385981,127.16,127.13,2.99246678]
[1768935432953,5.67689912,127.17,127.13,2.99246678]
[1768935433339,5.67689912,127.16,127.12,2.99246678]
[1768935433945,5.67689912,127.15,127.11,2.99246678]
[1768935434251,2.67303931,127.14,127.11,2.99246678]
[1768935436447,5.73678882,127.14,127.11,2.99246678]
[1768935437244,2.67303931,127.13,127.11,2.99246678]
[1768935437435,3.06374951,127.14,127.11,2.99246678]
[1768935437643,5.73678882,127.12,127.08,3.04385414]
[1768935437851,5.73678882,127.11,127.07,2.67303931]
[1768935438055,2.67303931,127.1,127.07,3.04385414]
[1768935438236,3.06374951,127.11,127.07,3.04385414]
[1768935438443,5.73678882,127.11,127.07,3.04385414]
[1768935439254,2.67303931,127.12,127.08,3.04385414]
[1768935439554,10.92909951,127.14,127.09,3.04385414]
[1768935439555,3.06374951,127.14,127.09,3.04385414]
[1768935439760,5.73678882,127.14,127.1,3.04385414]
[1768935439969,2.67303931,127.13,127.1,3.04385414]
[1768935440871,5.73678882,127.14,127.1,3.04385414]
[1768935441344,2.67303931,127.13,127.1,3.04385414]
[1768935441860,5.73678882,127.13,127.1,3.04385414]
[1768935444357,2.67303931,127.13,127.1,3.04385414]
[1768935444546,5.73678882,127.15,127.11,3.04385414]
[1768935444745,3.06374951,127.14,127.11,3.04385414]
[1768935446455,5.73678882,127.15,127.11,3.04385414]
[1768935446776,5.73678882,127.14,127.11,3.04385414]
[1768935446968,5.73678882,127.14,127.1,3.04385414]
[1768935448167,5.73678882,127.12,127.08,3.04385414]
[1768935448336,5.73678882,127.12,127.09,3.04385414]
[1768935449554,3.06374951,127.12,127.09,3.04385414]
[1768935450261,5.73678882,127.12,127.09,3.04385414]
[1768935450464,6.59460714,127.2,127.12,3.04385414]
[1768935450758,2.67303931,127.19,127.15,3.04385414]
[1768935450952,25.10120569,127.21,127.15,3.04385414]
[1768935451346,2.67388253,127.19,127.15,5.71773667]
[1768935451545,2.67388253,127.19,127.15,3.04385414]
[1768935451949,7.86120569,127.21,127.15,3.04385414]
[1768935452149,2.67388253,127.19,127.15,3.04385414]
[1768935452350,2.67388253,127.19,127.16,3.04385414]
[1768935452849,2.67388253,127.19,127.15,3.04385414]
[1768935452850,2.67388253,127.18,127.15,3.04385414]
[1768935453857,5.73763204,127.19,127.15,13.58238934]
[1768935454159,17.24,127.18,127.16,3.04385414]
[1768935454359,7.87287212,127.18,127.17,2.67388253]
[1768935454862,10.93662163,127.18,127.15,10.53816391]
[1768935455561,7.87287212,127.18,127.15,10.53816391]
[1768935455751,3.06374951,127.23,127.16,0.14216157]
[1768935455956,0.2,127.25,127.22,2.67388253]
[1768935456157,0.2,127.25,127.24,2.67388253]
[1768935456535,0.2,127.25,127.23,2.67388253]
[1768935458370,3.06374951,127.23,127.2,10.53548306]
[1768935458548,20.30374951,127.23,127.2,10.53548306]
[1768935458746,20.30374951,127.23,127.2,2.67388253]
[1768935459955,3.06374951,127.22,127.19,14.63884963]
[1768935460165,3.06374951,127.22,127.19,14.63908002]
[1768935460354,3.06374951,127.22,127.19,11.96519749]
[1768935460866,5.73763204,127.22,127.19,4.10298837]
[1768935461187,5.73763204,127.21,127.19,4.10298837]
[1768935461355,3.06374951,127.21,127.19,4.10298837]
[1768935461664,17.24,127.2,127.19,4.10298837]
[1768935462065,17.24,127.2,127.18,7.86274418]
[1768935462467,17.24,127.2,127.18,10.53662671]
[1768935462950,3.06374951,127.21,127.18,2.67388253]
[1768935463151,20.30374951,127.21,127.18,2.67388253]
[1768935464368,3.20511689,127.2,127.17,7.86321594]
[1768935464567,5.87899942,127.2,127.16,7.86392558]
[1768935464948,3.20511689,127.2,127.17,7.86334172]
[1768935465150,3.20511689,127.2,127.16,10.53776726]
[1768935467680,17.24,127.19,127.16,10.53776726]
[1768935468270,17.24,127.19,127.05,23.73]
[1768935468271,3.02827431,127.16,127.12,10.54017441]
[1768935468479,17.24,127.15,127.12,7.86629188]
[1768935468779,17.24,127.15,127.12,10.54017441]
[1768935472178,17.24,127.15,127.11,19.66698853]
[1768935472179,20.87827431,127.15,127.11,10.54080649]
[1768935472481,23.55215684,127.15,127.12,7.86643126]
[1768935474679,23.55215684,127.15,127.1,27.536919]
[1768935474877,2.67388253,127.14,127.1,27.55833173]
[1768935475176,23.55215684,127.15,127.1,27.55833173]
[1768935475764,3.02827431,127.13,127.1,7.86782061]
[1768935475967,22.94215684,127.12,127.09,7.86819129]
[1768935476164,22.94215684,127.12,127.08,7.86889246]
[1768935476369,3.02827431,127.11,127.08,7.86889246]
[1768935476576,2.96827432,127.11,127.07,7.89265557]
[1768935476782,5.64215685,127.11,127.07,7.89265557]
[1768935477293,2.67388253,127.11,127.07,7.86942225]
[1768935478566,5.70215684,127.11,127.07,7.86942225]
[1768935479069,5.70215684,127.11,127.06,27.63005639]
[1768935479786,2.67388253,127.1,127.06,27.63005639]
[1768935480372,17.24,127.09,127.05,8.06101602]
[1768935480691,17.06998959,127.09,127.05,8.06101602]
[1768935481077,17.06998959,127.09,127.06,0.09202738]
[1768935481277,17.24,127.1,127.07,0.09202738]
[1768935481579,17.24,127.1,127.08,0.09202738]
[1768935481776,17.17999999,127.1,127.08,0.09202738]
[1768935482095,17.11999999,127.1,127.08,0.09202738]
[1768935482273,17.11999999,127.1,127.07,0.09373538]
[1768935482474,17.11999999,127.1,127.07,7.96341351]
[1768935482685,17.11999999,127.1,127.07,10.63729604]
[1768935483091,3.63827431,127.15,127.1,0.09542376]
[1768935483279,17.24,127.14,127.1,2.76930629]
[1768935483678,3.02827431,127.14,127.1,2.76930629]
[1768935483878,0.61,127.15,127.11,2.77097528]
[1768935484090,17.85,127.15,127.11,2.77097528]
[1768935484380,3.63827431,127.15,127.11,2.77097528]
[1768935484787,6.31215684,127.15,127.1,10.63854211]
[1768935485187,23.55215684,127.15,127.1,10.63854211]
[1768935485375,3.02827431,127.12,127.08,2.7726251]
[1768935485577,3.02827431,127.12,127.08,10.64133005]
[1768935485985,5.70215684,127.11,127.07,10.5433133]
[1768935486190,5.64215685,127.11,127.07,10.5433133]
[1768935486999,2.96827432,127.11,127.08,6.69188503]
[1768935487184,23.93188503,127.12,127.08,6.69188503]
[1768935488191,26.96015934,127.12,127.07,14.72330137]
[1768935488396,26.96015934,127.12,127.09,5.8]
[1768935489084,3.02827431,127.14,127.1,0.16515451]
[1768935489281,20.26827431,127.14,127.11,6.69188503]
[1768935490198,3.02827431,127.14,127.11,6.69188503]
[1768935490398,3.02827431,127.14,127.1,14.55930322]
[1768935490585,3.02827431,127.13,127.1,7.86780976]
[1768935491078,3.02827431,127.13,127.09,20.52671546]
[1768935491275,3.02827431,127.13,127.09,13.83483043]
[1768935491473,3.02827431,127.12,127.09,13.6681187]
[1768935491696,3.02827431,127.12,127.09,20.36000373]
[1768935491995,6.69188503,127.13,127.1,7.86777618]
[1768935491996,9.72015934,127.13,127.1,7.86777618]
[1768935492201,3.02827431,127.13,127.1,14.55966121]
[1768935492582,3.02827431,127.13,127.1,6.69188503]
[1768935492787,3.02827431,127.13,127.09,20.36007485]
[1768935493301,3.02827431,127.14,127.11,0.17124056]
[1768935493503,23.93188503,127.19,127.13,9.8913999]
[1768935493801,23.93188503,127.19,127.14,6.69188503]
[1768935493802,6.69188503,127.18,127.14,6.69188503]
[1768935495393,2.97712632,127.17,127.13,17.75724279]
[1768935495702,2.97712632,127.18,127.15,6.69188503]
[1768935495909,20.21712632,127.19,127.15,9.88660468]
[1768935496115,2.97712632,127.19,127.15,9.88660468]
[1768935496612,20.21712632,127.19,127.15,6.69188503]
[1768935496797,2.97712632,127.19,127.15,6.69188503]
[1768935496994,2.97712632,127.18,127.15,6.69188503]
[1768935497385,2.97712632,127.18,127.14,17.75169762]
[1768935497593,2.97712632,127.17,127.12,3.19471965]
[1768935497810,2.97712632,127.17,127.13,6.69188503]
[1768935498700,9.66901135,127.17,127.12,23.55287025]
[1768935499119,2.97712632,127.14,127.12,5.8]
[1768935499290,2.97712632,127.13,127.12,5.8]
[1768935499811,2.97712632,127.12,127.09,7.86815807]
[1768935501509,9.66901135,127.13,127.09,7.86815807]
[1768935501817,9.66901135,127.13,127.09,11.06287772]
[1768935502192,9.66901135,127.14,127.1,3.19471965]
[1768935502513,2.97712632,127.14,127.1,9.88660468]
[1768935502919,2.97712632,127.14,127.11,5.8]
[1768935503215,9.66901135,127.14,127.11,5.8]
[1768935503396,2.97712632,127.13,127.11,5.8]
[1768935505110,3.58712632,127.13,127.11,5.8]
[1768935506720,2.97712632,127.12,127.11,5.8]
[1768935508119,9.66901135,127.12,127.08,11.06349542]
[1768935508795,6.69188503,127.11,127.08,3.19471965]
[1768935508997,2.6770522,127.11,127.08,3.19471965]
[1768935512019,25.71639929,127.13,127.06,3.19471965]
[1768935512020,2.6770522,127.09,127.06,3.19471965]
[1768935512320,2.6770522,127.08,127.06,3.19471965]
[1768935512693,2.6770522,127.08,127.05,0.1]
[1768935512694,2.6770522,127.07,127.05,0.1]
[1768935512903,2.67883711,127.07,127.05,0.1]
[1768935513522,2.67883711,127.06,127.05,0.1]
[1768935513719,2.97712632,127.07,127.03,3.19471965]
[1768935513926,2.67883711,127.06,127.03,11.06685844]
[1768935514925,6.6975637,127.06,127.03,11.06685844]
[1768935516925,6.6975637,127.06,127.03,3.19471965]
[1768935517927,9.67469002,127.06,127.02,11.16718069]
[1768935518431,9.67469002,127.06,127.03,3.19471965]
[1768935519333,6.6975637,127.06,127.03,3.19471965]
[1768935519525,26.91469002,127.07,127.03,3.19471965]
[1768935519928,23.9375637,127.07,127.04,3.19471965]
[1768935520228,9.67469002,127.08,127.04,3.19471965]
[1768935520408,26.91469002,127.08,127.04,3.19471965]
[1768935520609,9.67469002,127.08,127.04,3.19471965]
[1768935520810,26.91469002,127.08,127.04,3.19471965]
[1768935521130,6.6975637,127.06,127.03,3.19471965]
[1768935521330,9.67469002,127.07,127.03,3.19471965]
[1768935521539,9.67469002,127.07,127.04,3.19471965]
[1768935521937,6.6975637,127.06,127.04,3.19471965]
[1768935522136,2.97712632,127.07,127.04,3.19471965]
[1768935522339,9.67469002,127.07,127.04,3.19471965]
[1768935524348,6.6975637,127.05,127.02,11.08366024]
[1768935524540,9.7453778,127.06,127.02,11.08366024]
[1768935524840,6.6975637,127.06,127.03,10.98332727]
[1768935525043,23.9375637,127.07,127.04,3.16169793]
[1768935525346,6.6975637,127.07,127.04,3.16169793]
[1768935526242,6.63756369,127.07,127.04,3.16169793]
[1768935526539,6.6975637,127.06,127.04,3.16169793]
[1768935526739,6.6975637,127.05,127.02,11.1342397]
[1768935526947,6.6975637,127.05,127.02,3.26169793]
[1768935527244,3.13425761,127.06,127.02,3.26169793]
[1768935527456,6.6975637,127.15,127.12,4.10493358]
[1768935527740,23.9375637,127.16,127.12,7.23663155]
[1768935528040,6.6975637,127.13,127.1,4.1058325]
[1768935528239,17.24,127.16,127.1,4.1058325]
[1768935528240,23.9375637,127.12,127.1,4.1058325]
[1768935528548,17.24,127.12,127.1,4.1058325]
[1768935528721,23.9375637,127.12,127.1,4.1058325]
[1768935529829,6.6975637,127.12,127.1,4.1058325]
[1768935530032,17.24,127.11,127.1,4.1058325]
[1768935531653,23.9375637,127.11,127.1,4.1058325]
[1768935531836,23.9375637,127.11,127.07,7.86933766]
[1768935532046,6.6975637,127.1,127.07,7.86933766]
[1768935532229,23.9375637,127.1,127.07,11.03103559]
[1768935532555,6.6975637,127.1,127.07,11.03103559]
[1768935532845,17.24,127.09,127.07,11.03103559]
[1768935535227,23.9375637,127.09,127.06,11.03199542]
[1768935535528,6.6975637,127.08,127.04,9.85926163]
[1768935535728,6.72285408,127.08,127.04,9.85926163]
[1768935535930,6.6975637,127.08,127.05,7.87080609]
[1768935536130,6.6975637,127.08,127.05,11.03250402]
[1768935539859,17.24,127.07,127.05,11.03250402]
[1768935540830,120.94,127.07,127.05,11.03250402]
[1768935541932,120.87999996,127.07,127.05,11.03250402]
[1768935542131,103.63999998,127.07,127.05,11.03250402]
[1768935542353,6.6975637,127.08,127.06,9.85926163]
[1768935542354,41.41398156,127.08,127.06,9.85926163]
[1768935542553,58.65398156,127.08,127.06,3.16169793]
[1768935542861,3.13425761,127.07,127.04,17.73059261]
[1768935543030,68.48580287,127.08,127.04,17.73059261]
[1768935543659,17.24,127.07,127.04,17.73059261]
[1768935544056,17.24,127.07,127.05,3.16169793]
[1768935545358,41.41398156,127.08,127.05,11.03240578]
[1768935545856,58.65398156,127.08,127.05,11.03240578]
[1768935547063,58.65398156,127.08,127.06,5.8]
[1768935547961,41.41398156,127.08,127.06,5.8]
[1768935548173,58.65398156,127.08,127.06,5.8]
[1768935548757,41.41398156,127.08,127.06,5.8]
[1768935549059,1e-08,127.07,127.06,5.8]
[1768935549354,17.24,127.07,127.06,5.8]
[1768935549833,48.11154526,127.08,127.06,5.8]
[1768935550031,48.11154526,127.08,127.07,3.16169793]
[1768935550032,58.65398156,127.08,127.07,3.16169793]
[1768935550259,58.65398156,127.08,127.06,8.96169793]
[1768935550638,41.41398156,127.08,127.06,5.8]
[1768935551550,58.65398156,127.08,127.06,5.8]
[1768935552260,68.48580287,127.08,127.06,5.8]
[1768935552445,68.48580287,127.08,127.02,0.1]
[1768935552446,41.41398156,127.05,127.02,3.26169793]
[1768935552645,6.6975637,127.04,127.02,3.26169793]
[1768935553142,17.24,127.04,127.02,3.26169793]
[1768935553743,48.05154518,127.05,127.02,3.26169793]
[1768935553964,17.24,127.04,127.02,3.26169793]
[1768935555144,6.6975637,127.04,127.02,3.26169793]
[1768935556865,2.67980726,127.04,127.02,3.26169793]
[1768935557046,2.62980211,127.04,127.02,3.26169793]
[1768935557252,2.56980205,127.04,127.02,3.26169793]
[1768935558167,3.17980205,127.04,127.02,3.26169793]
[1768935572979,3.29006959,127.04,127.02,3.26169793]
[1768935574080,3.29006959,127.04,126.99,19.68573684]
[1768935574081,2.68006959,127.03,126.99,3.05660118]
[1768935574261,2.68006959,127.0,126.98,3.05660118]
[1768935574453,2.68006959,126.99,126.97,7.26502812]
[1768935574651,2.68006959,126.99,126.97,3.15660118]
[1768935575375,2.68006959,127.0,126.97,3.15660118]
[1768935575580,17.24,127.0,126.97,3.15660118]
[1768935575880,19.92006959,127.0,126.97,3.15660118]
[1768935576084,32.894496,127.04,126.98,3.05660118]
[1768935576295,19.92006959,127.02,126.98,3.05660118]
[1768935576495,2.68006959,127.01,126.98,3.05660118]
[1768935578189,3.29006959,127.01,126.98,3.05660118]
[1768935581879,44.64405107,127.01,126.98,3.05660118]
[1768935582597,2.68006959,127.0,126.97,3.15660118]
[1768935583503,2.68006959,127.0,126.97,0.1]
[1768935583504,2.68006959,126.98,126.97,0.1]
[1768935583800,2.62006957,126.98,126.97,0.1]
[1768935583999,2.68006959,126.99,126.97,0.1]
[1768935584679,2.68006959,126.99,126.97,3.43366363]
[1768935584997,2.68006959,127.0,126.97,3.43366363]
[1768935585197,2.62006956,127.0,126.98,3.19281482]
[1768935585393,2.68006959,127.0,126.98,3.19281482]
[1768935585599,2.68006959,126.99,126.98,3.19281482]
[1768935585796,2.68006959,126.99,126.97,0.1]
[1768935586186,3.14270351,126.99,126.97,0.1]
[1768935586377,2.68006959,126.98,126.97,0.1]
[1768935586795,2.68006959,126.98,126.95,0.1]
[1768935587485,52.98015353,127.01,126.95,0.1]
[1768935587696,2.68006959,126.99,126.96,3.19281482]
[1768935587900,61.29405107,127.0,126.96,3.19281482]
[1768935588390,41.35398148,127.0,126.96,3.19281482]
[1768935588589,34.5116795,127.0,126.98,0.92639737]
[1768935591788,34.40167329,127.0,126.98,0.92639737]
[1768935593702,34.40167329,127.0,126.97,0.94217744]
[1768935593887,37.5443768,127.0,126.96,8.81883423]
[1768935594210,40.22444639,127.0,126.97,7.87582902]
[1768935594713,40.22444639,127.0,126.97,7.8757529]
[1768935596419,3.14270351,126.97,126.95,0.1]
[1768935596581,3.14270351,126.95,126.94,0.1]
[1768935596787,5.8227731,126.95,126.91,8.92279732]
[1768935597504,2.68006959,126.94,126.91,1.04351627]
[1768935597695,5.73280009,126.94,126.91,1.04351627]
[1768935597880,5.73280009,126.94,126.91,8.92297334]
[1768935599483,2.68006959,126.94,126.91,1.04480949]
[1768935599787,5.8227731,126.96,126.92,1.04480949]
[1768935600407,5.76277311,126.96,126.92,8.92347386]
[1768935601002,34.40167329,126.97,126.92,8.02082594]
[1768935601193,2.68006959,126.96,126.92,8.98431143]
[1768935601395,34.40167329,126.97,126.93,1.10564706]
[1768935601589,34.40167329,126.97,126.94,1.10564706]
[1768935601913,2.68006959,126.99,126.94,3.78571665]
[1768935602088,59.5353696,127.01,126.95,3.78611049]
[1768935602089,2.68006959,127.0,126.95,3.78611049]
[1768935602291,2.68006959,127.02,126.98,1.1060409]
[1768935602496,2.68006959,127.02,126.98,11.66113199]
[1768935602497,3.14270351,127.02,126.98,11.66113199]
[1768935602702,3.14270351,127.02,126.97,3.78611049]
[1768935602703,3.14270351,127.01,126.97,3.78611049]
[1768935603406,3.14270351,127.01,126.97,11.66196853]
[1768935603695,5.8227731,126.99,126.95,17.26]
[1768935603903,5.8227731,126.98,126.95,17.26]
[1768935604211,5.8227731,127.0,126.96,3.78688466]
[1768935604512,3.14270351,127.0,126.96,11.66312794]
[1768935604708,3.14270351,127.0,126.96,8.98305835]
[1768935604911,5.8227731,127.01,126.97,3.78726508]
[1768935605110,3.14270351,127.02,126.99,2.68006959]
[1768935605808,3.14270351,127.02,126.99,3.78726508]
[1768935606108,3.14270351,127.03,127.0,2.68006959]
[1768935606405,3.14270351,127.06,127.02,3.78757484]
[1768935606791,3.14270351,127.04,127.01,2.68006959]
[1768935606991,3.14270351,127.05,127.02,2.68006959]
[1768935607204,3.14270351,127.06,127.03,2.68006959]
[1768935607515,3.14270351,127.1,127.05,3.78788104]
[1768935607811,3.14270351,127.1,127.08,2.68006959]
[1768935607989,3.14270351,127.11,127.08,2.68006959]
[1768935608186,3.14270351,127.11,127.05,3.78818373]
[1768935608384,3.14270351,127.07,127.02,9.12265989]
[1768935608584,3.14270351,127.07,127.04,2.68006959]
[1768935608789,3.14270351,127.06,127.02,10.55245377]
[1768935608998,5.8227731,127.06,127.02,10.55245377]
[1768935609230,3.14270351,127.06,127.03,2.68006959]
[1768935609386,10.54792365,127.1,127.05,3.78848294]
[1768935609387,3.14270351,127.1,127.05,3.78848294]
[1768935609589,3.14270351,127.1,127.07,2.68006959]
[1768935610201,5.8227731,127.12,127.08,2.68006959]
[1768935610404,3.14270351,127.11,127.08,2.68006959]
[1768935610913,3.14270351,127.12,127.08,10.54905083]
[1768935611108,3.14270351,127.12,127.09,2.68006959]
[1768935611617,3.34270351,127.14,127.11,2.68006959]
[1768935611816,3.34270351,127.14,127.12,2.68006959]
[1768935611817,0.2,127.14,127.12,2.68006959]
[1768935611997,0.2,127.14,127.13,2.68006959]
[1768935612196,3.14270351,127.16,127.12,2.68006959]
[1768935613222,5.8227731,127.18,127.12,8.97613998]
[1768935613519,3.14270351,127.18,127.15,2.68006959]
[1768935613697,3.14270351,127.18,127.14,2.68006959]
[1768935613698,5.8227731,127.18,127.14,2.68006959]
[1768935613899,3.14270351,127.17,127.14,2.68006959]
[1768935614098,3.14270351,127.16,127.13,2.68006959]
[1768935614591,3.14270351,127.16,127.14,2.68006959]
[1768935614791,3.14270351,127.16,127.13,10.5459637]
[1768935615403,3.14270351,127.16,127.13,2.68006959]
[1768935615715,3.39466465,127.18,127.15,2.68006959]
[1768935616090,3.39466465,127.18,127.13,7.86583019]
[1768935616091,3.39466465,127.18,127.14,2.68006959]
[1768935616297,3.39466465,127.18,127.15,2.68006959]
[1768935616995,3.39466465,127.17,127.14,2.68006959]
[1768935618706,3.39466465,127.17,127.15,2.68006959]
[1768935618911,3.39466465,127.17,127.14,2.68006959]
[1768935619114,3.39466465,127.17,127.15,2.68006959]
[1768935619616,3.39466465,127.2,127.15,2.68006959]
[1768935619817,3.39466465,127.19,127.15,2.68006959]
[1768935620314,3.39466465,127.18,127.15,2.68006959]
[1768935620515,3.39466465,127.17,127.13,19.92006959]
[1768935620713,3.39466465,127.16,127.13,19.92006959]
[1768935620914,3.39466465,127.16,127.13,27.78567257]
[1768935621805,3.39466465,127.18,127.14,3.79232835]
[1768935622431,3.39466465,127.18,127.14,2.68006959]
[1768935622805,3.39466465,127.2,127.16,2.68006959]
[1768935623012,3.39466465,127.2,127.16,10.54404617]
[1768935623317,6.07473424,127.2,127.15,11.6567716]
[1768935623493,3.39466465,127.19,127.15,11.6567716]
[1768935624322,3.39466465,127.19,127.16,7.86402927]
[1768935624612,3.39466465,127.19,127.15,11.65696254]
[1768935624832,3.39466465,127.19,127.16,10.54398484]
[1768935625002,3.39466465,127.2,127.17,2.68006959]
[1768935625201,3.39466465,127.2,127.16,11.65698977]
[1768935625813,3.39466465,127.2,127.16,10.54398484]
[1768935626412,3.39466465,127.19,127.15,10.54455301]
[1768935627227,37.99633794,127.21,127.17,2.68006959]
[1768935627432,3.39466465,127.2,127.17,2.68006959]
[1768935628115,3.39466465,127.2,127.16,27.7841778]
[1768935628623,3.39466465,127.2,127.16,25.10410821]
[1768935628624,3.39466465,127.19,127.16,25.10410821]
[1768935629027,3.39466465,127.19,127.16,17.24]
[1768935629916,3.39466465,127.19,127.16,27.78373333]
[1768935631726,2.68006959,127.2,127.16,27.78373333]
[1768935632921,2.67304373,127.2,127.16,27.77670747]
[1768935633521,2.67304373,127.2,127.16,17.24]
[1768935633729,3.39466465,127.18,127.16,17.24]
[1768935633918,3.39466465,127.17,127.16,17.24]
[1768935634304,0.2,127.21,127.17,3.37510161]
[1768935634499,0.2,127.21,127.2,2.67304373]
[1768935634731,103.9,127.24,127.2,6.04814534]
[1768935634933,103.9,127.24,127.22,2.67304373]
[1768935635142,103.9,127.24,127.21,2.67304373]
[1768935636009,103.9,127.24,127.21,6.04814534]
[1768935636213,0.2,127.27,127.24,3.37510161]
[1768935636515,0.2,127.27,127.25,6.04814534]
[1768935638041,3.59466465,127.31,127.27,6.04814534]
[1768935638618,3.59466465,127.31,127.28,2.67304373]
[1768935639706,3.39466465,127.29,127.24,11.23389923]
[1768935639907,6.06770838,127.29,127.25,2.67304373]
[1768935640334,3.39466465,127.29,127.25,2.67304373]
[1768935640571,3.39466465,127.29,127.25,10.5314328]
[1768935640840,20.61466465,127.29,127.25,10.5314328]
[1768935641541,124.31466465,127.29,127.25,10.5314328]
[1768935641720,126.98770838,127.29,127.25,10.5314328]
[1768935642046,126.98770838,127.29,127.25,6.04814534]
[1768935642227,3.39466465,127.27,127.24,2.67304373]
[1768935642551,3.39466465,127.25,127.21,6.04814534]
[1768935642848,20.61466465,127.25,127.22,7.86033791]
[1768935643051,6.06770838,127.26,127.22,6.04814534]
[1768935643238,20.61466465,127.26,127.22,6.04814534]
[1768935643443,20.61466465,127.26,127.22,13.90840094]
[1768935643752,20.61466465,127.26,127.23,2.67304373]
[1768935644280,3.31968649,127.25,127.21,7.86080029]
[1768935644551,3.31968649,127.24,127.21,7.86080029]
[1768935645046,5.94808376,127.23,127.19,2.67304373]
[1768935645234,17.22,127.22,127.19,2.67304373]
[1768935645442,17.17392133,127.22,127.19,6.02048169]
[1768935645642,17.17392133,127.22,127.14,3.34743796]
[1768935645643,2.67304373,127.2,127.14,3.34743796]
[1768935645950,2.67304373,127.19,127.14,13.88554193]
[1768935646161,17.22,127.18,127.14,13.88554193]
[1768935646850,17.22,127.18,127.14,17.89749274]
[1768935647040,17.22,127.18,127.14,37.56085596]
[1768935647353,17.22,127.18,127.15,6.68499454]
[1768935647535,17.22,127.18,127.14,30.87586142]
[1768935647536,9.96003457,127.21,127.17,10.0324325]
[1768935647741,17.22,127.2,127.17,10.0324325]
[1768935648250,17.22,127.2,127.17,17.89568702]
[1768935649035,27.18003457,127.2,127.16,14.54892999]
[1768935649333,27.18003457,127.2,127.16,17.89636795]
[1768935649535,27.18003457,127.2,127.17,7.86334805]
[1768935652462,17.22,127.19,127.17,7.86334805]
[1768935652637,9.96003457,127.2,127.16,17.89631023]
[1768935652963,17.22,127.19,127.16,17.89631023]
[1768935653549,3.27504003,127.18,127.15,6.68499454]
[1768935653733,9.96003457,127.18,127.14,17.89745162]
[1768935654049,3.27504003,127.18,127.14,17.89745162]
[1768935654263,9.96003457,127.18,127.14,17.89745162]
[1768935655253,3.27504003,127.18,127.15,10.0324325]
[1768935656455,3.27504003,127.18,127.15,17.89687133]
[1768935657972,20.49504003,127.19,127.15,17.89687133]
[1768935658261,103.7,127.21,127.18,10.0324325]
[1768935658458,17.22,127.2,127.18,10.0324325]
[1768935658664,17.22,127.2,127.17,6.68499454]